Workbook

Sheet Bilanz
B3: Aktiva | C3: Bilanz der Tropic GmbH zum 31.12.20.. | G3: Passiva
C4: Vorjahr | D4: Berichtsjahr | F4: Vorjahr | G4: Berichtsjahr
B5: Anlagevermögen | E5: Eigenkapital
B6: Grundstücke | C6: 1900000 | D6: 1900000 | E6: gez. Kapital | F6: 2000000 | G6: 2000000
B7: Gebäude | C7: 1100000 | D7: 1500000 | E7: Rücklagen | F7: 800000 | G7: 1300000
B8: Maschinen | C8: 800000 | D8: 1100000
B9: Fuhrpark | C9: 200000 | D9: 320000 | E9: Fremdkapital
B10: Betriebs- und Geschäftsausst. | C10: 50000 | D10: 70000 | E10: langfristige Bankverbindlichkeiten | F10: 1300000 | G10: 1700000
E11: Verbindlichkeiten aLuL | F11: 440000 | G11: 594000
B12: Umlaufververmögen | E12: Umsatzsteuer | F12: 180000 | G12: 308000
B13: Rohstoffe | C13: 120000 | D13: 140000 | E13: Passive Rechnungsabgrenzung | F13: 7000 | G13: 12000
B14: Hilfsstoffe | C14: 80000 | D14: 70000
B15: Betriebsstoffe | C15: 50000 | D15: 40000
B16: Unfertige Erzeugnisse | C16: 20000 | D16: 120000
B17: Fertige Erzeugnisse | C17: 10000 | D17: 90000
B18: Forderungen aLuL | C18: 360000 | D18: 480000
B19: Bank | C19: 30000 | D19: 70000
B20: Kasse | C20: 5000 | D20: 10000
B21: Aktive Rechnungsabgrenzung | C21: 2000 | D21: 4000
C22: =SUM(C5:C21) -> 4727000 | D22: =SUM(D5:D21) -> 5914000 | F22: =SUM(F5:F21) -> 4727000 | G22: =SUM(G5:G21) -> 5914000

Sheet Kennziffern
C3: Aufbereitete Bilanz der Tropic GmbH zum 31.12.20..
C4: Vorjahr | E4: Berichtsjahr | H4: Vorjahr | J4: Berichtsjahr
B5: Aktiva | C5: € | D5: % | E5: € | F5: % | G5: Passiva | H5: € | I5: % | J5: € | K5: %
B6: Anlagevermögen | C6: =SUM(Bilanz!C6:C10) -> 4050000 | D6: =C6/$C$11 -> 0.8567801989 | E6: =SUM(Bilanz!D6:D10) -> 4890000 | F6: =E6/$E$11 -> 0.8268515387 | G6: Eigenkapital | H6: =SUM(Bilanz!F6:F7) -> 2800000 | I6: =H6/$H$11 -> 0.5923418659 | J6: =SUM(Bilanz!G6:G7) -> 3300000 | K6: =J6/$J$11 -> 0.5579979709
B7: Vorräte | C7: =SUM(Bilanz!C13:C17) -> 280000 | D7: 0.05923418659 | E7: =SUM(Bilanz!D13:D17) -> 460000 | F7: 0.07778153534 | G7: langfr. Fremdkapital | H7: =Bilanz!F10 -> 1300000 | I7: =H7/$H$11 -> 0.2750158663 | J7: =Bilanz!G10 -> 1700000 | K7: =J7/$J$11 -> 0.2874535002
B8: Forderungen | C8: =Bilanz!C18+Bilanz!C21 -> 362000 | D8: 0.07658134123 | E8: =Bilanz!D18+Bilanz!D21 -> 484000 | F8: 0.0818397024 | G8: kurzfr. Fremdkapital | H8: =SUM(Bilanz!F11:F13) -> 627000 | I8: =H8/$H$11 -> 0.1326422678 | J8: =SUM(Bilanz!G11:G13) -> 914000 | K8: =J8/$J$11 -> 0.1545485289
B9: liquide Mittel | C9: =SUM(Bilanz!C19:C20) -> 35000 | D9: 0.007404273323 | E9: =SUM(Bilanz!D19:D20) -> 80000 | F9: 0.01352722354 | G9: Fremdkapital | H9: =H7+H8 -> 1927000 | I9: =H9/$H$11 -> 0.4076581341 | J9: =J7+J8 -> 2614000 | K9: =J9/$J$11 -> 0.4420020291
B10: Umlaufvermögen | C10: =SUM(C7:C9) -> 677000 | D10: 0.1432198011 | E10: =SUM(E7:E9) -> 1024000 | F10: 0.1731484613
C11: =C6+C10 -> 4727000 | D11: 1 | E11: =E6+E10 -> 5914000 | F11: 1 | H11: =H6+H9 -> 4727000 | I11: =H11/$H$11 -> 1 | J11: =J6+J9 -> 5914000 | K11: =J11/$J$11 -> 1
C13: Bilanzkennziffern
D14: Vorjahr | E14: Veränderung | F14: Berichtsjahr | I14: Vorjahr | J14: Veränderung | K14: Berichtsjahr
B15: Konstitution | G15: Finanzierung
B16: Anlageintensität | D16: =D6 -> 0.8567801989 | E16: =F16-D16 -> -0.02992866014 | F16: =F6 -> 0.8268515387 | G16: Grad der finanziallen Unabhängigkeit | I16: =I6 -> 0.5923418659 | J16: =K16-I16 -> -0.03434389496 | K16: =K6 -> 0.5579979709
B17: Anteil des Umlaufvermögens | D17: =D10 -> 0.1432198011 | E17: =F17-D17 -> 0.02992866014 | F17: =F10 -> 0.1731484613 | G17: Grad der Verschuldung | I17: =I9 -> 0.4076581341 | J17: =K17-I17 -> 0.03434389496 | K17: =K9 -> 0.4420020291
B18: Vorratsquote | D18: =D7 -> 0.05923418659 | E18: =F18-D18 -> 0.01854734875 | F18: =F7 -> 0.07778153534 | G18: Anteil des langfristigen Fremdkapitals | I18: =I7 -> 0.2750158663 | J18: 0.01243763387 | K18: =K7 -> 0.2874535002
B19: Quote der Forderungen | D19: =D8 -> 0.07658134123 | E19: =F19-D19 -> 0.00525836117 | F19: =F8 -> 0.0818397024 | G19: Anteil des kurzfristigen Fremdkapitals | I19: =I8 -> 0.1326422678 | J19: 0.02190626109 | K19: =K8 -> 0.1545485289
B20: Anteil der flüssigen Mittel | D20: =D9 -> 0.007404273323 | E20: =F20-D20 -> 0.006122950214 | F20: =F9 -> 0.01352722354 | G20: Liquidität
B21: Investierung | G21: Liquidität 1. Grades | I21: =C9/H8 -> 0.05582137161 | J21: 0.03170598069 | K21: =E9/J8 -> 0.0875273523
B22: Deckungsgrad I | D22: =H6/C6 -> 0.6913580247 | E22: =F22-D22 -> -0.01651139892 | F22: =J6/E6 -> 0.6748466258 | G22: Liquidität 2. Grades | I22: =(C9+C8)/H8 -> 0.6331738437 | J22: -0.01610601 | K22: =(E9+E8)/J8 -> 0.6170678337
B23: Deckungsgrad II | D23: =(H6+H7)/C6 -> 1.012345679 | E23: =F23-D23 -> 0.01014920851 | F23: =(J6+J7)/E6 -> 1.022494888 | G23: Liquidität 3. Grades | I23: =(C9+C8+C7)/H8 -> 1.079744817 | J23: 0.04060529282 | K23: =(E9+E8+E7)/J8 -> 1.120350109

Sheet Auswertung
B2: Auswertung
B4: Abweichungstoleranz in die gelben Felder eintragen.
B6: niedriger Abweichungswert | D6: -0.01
B7: Differenz = Abweichungstoleranz
B8: hoher Abweichungswert | D8: 0.01
B11: Konstitution
C12: Vorjahr | D12: Berichtsjahr | E12: Veränderung | I12: Tolereranzbereich in %
B13: Anlageintensität | C13: =Kennziffern!D16 -> 0.8567801989 | D13: =Kennziffern!F16 -> 0.8268515387 | E13: =Kennziffern!E16 -> -0.02992866014 | I13: niedriger Wert | J13: hoher Wert
B14: Umlaufvermögen | C14: =Kennziffern!D17 -> 0.1432198011 | D14: =Kennziffern!F17 -> 0.1731484613 | E14: =Kennziffern!E17 -> 0.02992866014 | I14: -1 | J14: 1
B15: =IF(E13<D6,Texte!A4,IF(E13>D8,Texte!A5,Texte!A6)) -> Verminderte Belastung mit fixen Kosten. | I15: =IF(I14>J14,"Toleranzbereich ungültig!","") -> 
B16: =IF(E13<D6,Texte!A8,IF(Auswertung!E13>D8,Texte!A7,Texte!A9)) -> Erhöhte Anpassungsfähigkeit an die Auftragslage.
B18: Investierung (Deckungsgrad I)
C19: Vorjahr | D19: Berichtsjahr | E19: Veränderung | I19: Tolereranzbereich in %
B20: Deckungsgrad I | C20: =Kennziffern!D22 -> 0.6913580247 | D20: =Kennziffern!F22 -> 0.6748466258 | E20: =Kennziffern!E22 -> -0.01651139892 | I20: niedriger Wert | J20: hoher Wert
B21: =IF(Auswertung!E20<Auswertung!D6,Texte!A12,IF(Auswertung!E20>Auswertung!D8,Texte!A13,Texte!A14)) -> Verminderung des Deckungsgrades I | I21: -1 | J21: 1
B22: (Deckung des Anlagevermögens mit Eigenkapital) | I22: =IF(I21>J21,"Toleranzbereich ungültig!","") -> 
B25: Investierung (Deckungsgrad II)
C26: Vorjahr | D26: Berichtsjahr | E26: Veränderung | I26: Tolereranzbereich in %
B27: Deckungsgrad II | C27: =Kennziffern!D23 -> 1.012345679 | D27: =Kennziffern!F23 -> 1.022494888 | E27: =Kennziffern!E23 -> 0.01014920851 | I27: niedriger Wert | J27: hoher Wert
B28: =IF(Auswertung!E27<Auswertung!D6,Texte!A17,IF(Auswertung!E27>Auswertung!D8,Texte!A18,Texte!A19)) -> Verbesserung des Deckungsgrades II | I28: -1 | J28: 1
B29: =IF(D27>100%,Texte!A20,Texte!A21) -> Die Goldene Bilanzregel wird eingehalten. | I29: =IF(I28>J28,"Toleranzbereich ungültig!","") -> 
B30: (Deckung des Anlagevermögens mit Eigenkapital und langfristigem Fremdkapital)
B32: Finanzierung
C33: Vorjahr | D33: Berichtsjahr | E33: Veränderung | I33: Tolereranzbereich in %
B34: Eigenkapital | C34: =Kennziffern!I16 -> 0.5923418659 | D34: =Kennziffern!K16 -> 0.5579979709 | E34: =Kennziffern!J16 -> -0.03434389496 | I34: niedriger Wert | J34: hoher Wert
B35: Verschuldung | C35: =Kennziffern!I17 -> 0.4076581341 | D35: =Kennziffern!K17 -> 0.4420020291 | E35: =Kennziffern!J17 -> 0.03434389496 | I35: -1 | J35: 1
B36: =IF(Auswertung!E34<Auswertung!D6,Texte!A24,IF(Auswertung!E34>Auswertung!D8,Texte!A25,Texte!A26)) -> Verminderung des Eigenkapitalanteils | I36: =IF(I35>J35,"Toleranzbereich ungültig!","") -> 
B37: =IF(Auswertung!E35>Auswertung!D8,Texte!A28,IF(Auswertung!E35<Auswertung!D6,Texte!A27,Texte!A29)) -> Erhöhung der finanziellen Abhängigkeit
B39: Fremdkapitalanteile
C40: Vorjahr | D40: Berichtsjahr | E40: Veränderung | I40: Tolereranzbereich in %
B41: langfristiges Fremdkapital | C41: =Kennziffern!I18 -> 0.2750158663 | D41: =Kennziffern!K18 -> 0.2874535002 | E41: =Kennziffern!J18 -> 0.01243763387 | I41: niedriger Wert | J41: hoher Wert
B42: kurzfristiges Fremdkapital | C42: =Kennziffern!I19 -> 0.1326422678 | D42: =Kennziffern!K19 -> 0.1545485289 | E42: =Kennziffern!J19 -> 0.02190626109 | I42: -1 | J42: 1
B43: =IF(Auswertung!E41>Auswertung!D8,Texte!A32,IF(Auswertung!E41<Auswertung!D6,Texte!A33,Texte!A34)) -> Erhöhung der langfristigen Schulden | I43: =IF(I42>J42,"Toleranzbereich ungültig!","") -> 
B44: =IF(Auswertung!E42>Auswertung!D8,Texte!A35,IF(Auswertung!E42<Auswertung!D6,Texte!A36,Texte!A37)) -> Erhöhung der kurzfristigen Schulden
B45: =IF(Auswertung!E42>Auswertung!D8,Texte!A38,IF(Auswertung!E42<Auswertung!D6,Texte!A39,Texte!A40)) -> Negative Auswirkung auf die Liquidität
B47: Liquidität
C48: Vorjahr | D48: Berichtsjahr | E48: Veränderung | I48: Tolereranzbereich in %
B49: 1. Grades | C49: =Kennziffern!I21 -> 0.05582137161 | D49: =Kennziffern!K21 -> 0.0875273523 | E49: =Kennziffern!J21 -> 0.03170598069 | I49: niedriger Wert | J49: hoher Wert
B50: 2. Grades | C50: =Kennziffern!I22 -> 0.6331738437 | D50: =Kennziffern!K22 -> 0.6170678337 | E50: =Kennziffern!J22 -> -0.01610601 | I50: 95 | J50: 105
B51: 3. Grades | C51: =Kennziffern!I23 -> 1.079744817 | D51: =Kennziffern!K23 -> 1.120350109 | E51: =Kennziffern!J23 -> 0.04060529282 | I51: =IF(I50>J50,"Toleranzbereich ungültig!","") -> 
B52: =IF(Auswertung!D50<100%,Texte!A43,Texte!A44) -> Unterdeckung bei der einzugsbedingten Liquidität (<100%)
B53: =IF(Auswertung!E50<Auswertung!D6,Texte!A45,IF(Auswertung!E50>Auswertung!D8,Texte!A46,Texte!A47)) -> Liquiditätsverschlechterung | F53: Toleranzbereich bezieht sich auf D50

Sheet Texte
A1: Texte
A3: Anlagenintensität
A4: Verminderte Belastung mit fixen Kosten.
A5: Erhöhte Belastung mit fixen Kosten.
A6: Geringe Veränderung bei der Belastung mit fixen Kosten.
A7: Verminderte Anpassungsfähigkeit an die Auftragslage.
A8: Erhöhte Anpassungsfähigkeit an die Auftragslage.
A9: Unveränderte Anpassungsfähigkeit an die Auftragslage.
A11: Deckungsgrad I
A12: Verminderung des Deckungsgrades I
A13: Verbesserung des Deckungsgrades I
A14: Geringe Veränderung des Deckungsgrades I
A16: Deckungsgrad II
A17: Verminderung des Deckungsgrades II
A18: Verbesserung des Deckungsgrades II
A19: Geringe Veränderung des Deckungsgrades II
A20: Die Goldene Bilanzregel wird eingehalten.
A21: Die Goldene Bilanzregel wird nicht eingehalten.
A23: Finanzierung
A24: Verminderung des Eigenkapitalanteils
A25: Erhöhung des Eigenkapitalanteils
A26: Geringfügige Änderung des Eigenkapitalanteils
A27: Verminderung der finanziellen Abhängigkeit
A28: Erhöhung der finanziellen Abhängigkeit
A29: Geringfügige Änderung der Verschuldung
A31: Fremdkapitalanteile
A32: Erhöhung der langfristigen Schulden
A33: Verminderung der langfristigen Schulden
A34: Geringe Änderung der langfristigen Schulden
A35: Erhöhung der kurzfristigen Schulden
A36: Verminderung der kurzfristigen Schulden
A37: Geringe Änderung der kurzfristigen Schulden
A38: Negative Auswirkung auf die Liquidität
A39: Positive Auswirkung auf die Liquidität
A40: Auswirkung auf die Liquidität ist unverändert
A42: Liqudität
A43: Unterdeckung bei der einzugsbedingten Liquidität (<100%)
A44: Überdeckung bei der einzugsbedingten Liquidität (>100%)
A45: Liquiditätsverschlechterung
A46: Liquiditätsverbesserung
A47: Unwesenltiche Liquiditätsveränderung
